Workbook

Sheet Flux de trésorerie Relevé
B1: Flux de trésorerie Relevé
B3: Début exercice comptable : | D3: (Pré) démarrage | E3: =UPPER(TEXT(Débutexercicecomptable,"mmm")) -> JANV | F3: =UPPER(TEXT(EOMONTH(Débutexercicecomptable,1),"mmm")) -> FÉVR | G3: =UPPER(TEXT(EOMONTH(Débutexercicecomptable,2),"mmm")) -> MARS | H3: =UPPER(TEXT(EOMONTH(Débutexercicecomptable,3),"mmm")) -> AVR | I3: =UPPER(TEXT(EOMONTH(Débutexercicecomptable,4),"mmm")) -> MAI | J3: =UPPER(TEXT(EOMONTH(Débutexercicecomptable,5),"mmm")) -> JUIN | K3: =UPPER(TEXT(EOMONTH(Débutexercicecomptable,6),"mmm")) -> JUIL | L3: =UPPER(TEXT(EOMONTH(Débutexercicecomptable,7),"mmm")) -> AOÛT | M3: =UPPER(TEXT(EOMONTH(Débutexercicecomptable,8),"mmm")) -> SEPT | N3: =UPPER(TEXT(EOMONTH(Débutexercicecomptable,9),"mmm")) -> OCT | O3: =UPPER(TEXT(EOMONTH(Débutexercicecomptable,10),"mmm")) -> NOV | P3: =UPPER(TEXT(EOMONTH(Débutexercicecomptable,11),"mmm")) -> DÉC | R3: Total
B4: 2012-01-05 | D4: Estimation | E4: =Débutexercicecomptable -> 2012-01-05 | F4: =EOMONTH(E4,0)+DAY(Débutexercicecomptable) -> 2012-02-05 | G4: =EOMONTH(F4,0)+DAY(Débutexercicecomptable) -> 2012-03-05 | H4: =EOMONTH(G4,0)+DAY(Débutexercicecomptable) -> 2012-04-05 | I4: =EOMONTH(H4,0)+DAY(Débutexercicecomptable) -> 2012-05-05 | J4: =EOMONTH(I4,0)+DAY(Débutexercicecomptable) -> 2012-06-05 | K4: =EOMONTH(J4,0)+DAY(Débutexercicecomptable) -> 2012-07-05 | L4: =EOMONTH(K4,0)+DAY(Débutexercicecomptable) -> 2012-08-05 | M4: =EOMONTH(L4,0)+DAY(Débutexercicecomptable) -> 2012-09-05 | N4: =EOMONTH(M4,0)+DAY(Débutexercicecomptable) -> 2012-10-05 | O4: =EOMONTH(N4,0)+DAY(Débutexercicecomptable) -> 2012-11-05 | P4: =EOMONTH(O4,0)+DAY(Débutexercicecomptable) -> 2012-12-05 | R4: Estimation des éléments
B6: Trésorerie disponible (début du mois) | D6: 100 | E6: =D51 -> 100 | F6: =E51 -> -125 | G6: 45 | H6: -1 | I6: 224 | J6: 269 | K6: 269 | L6: 269 | M6: 269 | N6: 269 | O6: 269 | P6: 269 | R6: =P6 -> 269
B8: Encaissements
B10: Ventes au comptant | E10: 125 | F10: 120 | G10: 130 | H10: 100 | R10: =SUM(Encaissements[[#This Row],[Période 0]:[Période 12]]) -> 475
B11: Ensemble des comptes créditeurs | H11: 75 | I11: 45 | R11: =SUM(Encaissements[[#This Row],[Période 0]:[Période 12]]) -> 120
B12: Prêt/Autres apports de trésorerie | E12: 50 | F12: 50 | G12: 50 | H12: 50 | R12: =SUM(Encaissements[[#This Row],[Période 0]:[Période 12]]) -> 200
B13: Total | D13: =SUBTOTAL(109,Encaissements[Période 0]) -> 0 | E13: =SUBTOTAL(109,Encaissements[Période 1]) -> 175 | F13: =SUBTOTAL(109,Encaissements[Période 2]) -> 170 | G13: =SUBTOTAL(109,Encaissements[Période 3]) -> 180 | H13: =SUBTOTAL(109,Encaissements[Période 4]) -> 225 | I13: =SUBTOTAL(109,Encaissements[Période 5]) -> 45 | J13: =SUBTOTAL(109,Encaissements[Période 6]) -> 0 | K13: =SUBTOTAL(109,Encaissements[Période 7]) -> 0 | L13: =SUBTOTAL(109,Encaissements[Période 8]) -> 0 | M13: =SUBTOTAL(109,Encaissements[Période 9]) -> 0 | N13: =SUBTOTAL(109,Encaissements[Période 10]) -> 0 | O13: =SUBTOTAL(109,Encaissements[Période 11]) -> 0 | P13: =SUBTOTAL(109,Encaissements[Période 12]) -> 0 | R13: =SUBTOTAL(109,Encaissements[Total]) -> 795
B14: Total de trésorerie disponible (avant décaissement) | D14: =D6+SUM(Encaissements[Période 0]) -> 100 | E14: =E6+SUM(Encaissements[Période 1]) -> 275 | F14: =F6+SUM(Encaissements[Période 2]) -> 45 | G14: =G6+SUM(Encaissements[Période 3]) -> 225 | H14: =H6+SUM(Encaissements[Période 4]) -> 224 | I14: =I6+SUM(Encaissements[Période 5]) -> 269 | J14: =J6+SUM(Encaissements[Période 6]) -> 269 | K14: =K6+SUM(Encaissements[Période 7]) -> 269 | L14: =L6+SUM(Encaissements[Période 8]) -> 269 | M14: =M6+SUM(Encaissements[Période 9]) -> 269 | N14: =N6+SUM(Encaissements[Période 10]) -> 269 | O14: =O6+SUM(Encaissements[Période 11]) -> 269 | P14: =P6+SUM(Encaissements[Période 12]) -> 269 | R14: =R6+SUM(Encaissements[Total]) -> 1064
B16: Décaissements
B18: Achats (marchandises) | E18: 400 | G18: 226 | R18: =SUM(Décaissements[[#This Row],[Période 0]:[Période 12]]) -> 626
B19: Achats (préciser) | R19: =SUM(Décaissements[[#This Row],[Période 0]:[Période 12]]) -> 0
B20: Achats (préciser) | R20: =SUM(Décaissements[[#This Row],[Période 0]:[Période 12]]) -> 0
B21: Salaires bruts (retrait exact) | R21: =SUM(Décaissements[[#This Row],[Période 0]:[Période 12]]) -> 0
B22: Charges sociales (taxes, etc.) | R22: =SUM(Décaissements[[#This Row],[Période 0]:[Période 12]]) -> 0
B23: Services extérieurs | R23: =SUM(Décaissements[[#This Row],[Période 0]:[Période 12]]) -> 0
B24: Fournitures | R24: =SUM(Décaissements[[#This Row],[Période 0]:[Période 12]]) -> 0
B25: Réparations et entretien | R25: =SUM(Décaissements[[#This Row],[Période 0]:[Période 12]]) -> 0
B26: Publicité | R26: =SUM(Décaissements[[#This Row],[Période 0]:[Période 12]]) -> 0
B27: Voiture, livraison et transport | R27: =SUM(Décaissements[[#This Row],[Période 0]:[Période 12]]) -> 0
B28: Comptabilité et juridique | R28: =SUM(Décaissements[[#This Row],[Période 0]:[Période 12]]) -> 0
B29: Location | R29: =SUM(Décaissements[[#This Row],[Période 0]:[Période 12]]) -> 0
B30: Téléphone | R30: =SUM(Décaissements[[#This Row],[Période 0]:[Période 12]]) -> 0
B31: Services | R31: =SUM(Décaissements[[#This Row],[Période 0]:[Période 12]]) -> 0
B32: Assurance | R32: =SUM(Décaissements[[#This Row],[Période 0]:[Période 12]]) -> 0
B33: Taxes (immobilier, etc.) | R33: =SUM(Décaissements[[#This Row],[Période 0]:[Période 12]]) -> 0
B34: Intérêts | R34: =SUM(Décaissements[[#This Row],[Période 0]:[Période 12]]) -> 0
B35: Autres dépenses (préciser) | R35: =SUM(Décaissements[[#This Row],[Période 0]:[Période 12]]) -> 0
B36: Autre (préciser) | R36: =SUM(Décaissements[[#This Row],[Période 0]:[Période 12]]) -> 0
B37: Autre (préciser) | R37: =SUM(Décaissements[[#This Row],[Période 0]:[Période 12]]) -> 0
B38: Divers | R38: =SUM(Décaissements[[#This Row],[Période 0]:[Période 12]]) -> 0
B39: Total | D39: =SUBTOTAL(109,Décaissements[Période 0]) -> 0 | E39: =SUBTOTAL(109,Décaissements[Période 1]) -> 400 | F39: =SUBTOTAL(109,Décaissements[Période 2]) -> 0 | G39: =SUBTOTAL(109,Décaissements[Période 3]) -> 226 | H39: =SUBTOTAL(109,Décaissements[Période 4]) -> 0 | I39: =SUBTOTAL(109,Décaissements[Période 5]) -> 0 | J39: =SUBTOTAL(109,Décaissements[Période 6]) -> 0 | K39: =SUBTOTAL(109,Décaissements[Période 7]) -> 0 | L39: =SUBTOTAL(109,Décaissements[Période 8]) -> 0 | M39: =SUBTOTAL(109,Décaissements[Période 9]) -> 0 | N39: =SUBTOTAL(109,Décaissements[Période 10]) -> 0 | O39: =SUBTOTAL(109,Décaissements[Période 11]) -> 0 | P39: =SUBTOTAL(109,Décaissements[Période 12]) -> 0 | R39: =SUBTOTAL(109,Décaissements[Total]) -> 626
B41: Décaissements (hors compte de résultat)
B43: Remboursement du capital d’un prêt | R43: =SUM(Décaissements2[[#This Row],[Période 0]:[Période 12]]) -> 0
B44: Achat d’immobilisations (préciser) | R44: =SUM(Décaissements2[[#This Row],[Période 0]:[Période 12]]) -> 0
B45: Autres frais de démarrage | R45: =SUM(Décaissements2[[#This Row],[Période 0]:[Période 12]]) -> 0
B46: Compte sous séquestre | R46: =SUM(Décaissements2[[#This Row],[Période 0]:[Période 12]]) -> 0
B47: Retrait du propriétaire | R47: =SUM(Décaissements2[[#This Row],[Période 0]:[Période 12]]) -> 0
B48: Total | D48: =SUBTOTAL(109,Décaissements2[Période 0]) -> 0 | E48: =SUBTOTAL(109,Décaissements2[Période 1]) -> 0 | F48: =SUBTOTAL(109,Décaissements2[Période 2]) -> 0 | G48: =SUBTOTAL(109,Décaissements2[Période 3]) -> 0 | H48: =SUBTOTAL(109,Décaissements2[Période 4]) -> 0 | I48: =SUBTOTAL(109,Décaissements2[Période 5]) -> 0 | J48: =SUBTOTAL(109,Décaissements2[Période 6]) -> 0 | K48: =SUBTOTAL(109,Décaissements2[Période 7]) -> 0 | L48: =SUBTOTAL(109,Décaissements2[Période 8]) -> 0 | M48: =SUBTOTAL(109,Décaissements2[Période 9]) -> 0 | N48: =SUBTOTAL(109,Décaissements2[Période 10]) -> 0 | O48: =SUBTOTAL(109,Décaissements2[Période 11]) -> 0 | P48: =SUBTOTAL(109,Décaissements2[Période 12]) -> 0 | R48: =SUBTOTAL(109,Décaissements2[Total]) -> 0
B49: Total des décaissements | D49: =SUM(Décaissements[Période 0],Décaissements2[Période 0]) -> 0 | E49: =SUM(Décaissements[Période 1],Décaissements2[Période 1]) -> 400 | F49: =SUM(Décaissements[Période 2],Décaissements2[Période 2]) -> 0 | G49: =SUM(Décaissements[Période 3],Décaissements2[Période 3]) -> 226 | H49: =SUM(Décaissements[Période 4],Décaissements2[Période 4]) -> 0 | I49: =SUM(Décaissements[Période 5],Décaissements2[Période 5]) -> 0 | J49: =SUM(Décaissements[Période 6],Décaissements2[Période 6]) -> 0 | K49: =SUM(Décaissements[Période 7],Décaissements2[Période 7]) -> 0 | L49: =SUM(Décaissements[Période 8],Décaissements2[Période 8]) -> 0 | M49: =SUM(Décaissements[Période 9],Décaissements2[Période 9]) -> 0 | N49: =SUM(Décaissements[Période 10],Décaissements2[Période 10]) -> 0 | O49: =SUM(Décaissements[Période 11],Décaissements2[Période 11]) -> 0 | P49: =SUM(Décaissements[Période 12],Décaissements2[Période 12]) -> 0 | R49: =SUM(Décaissements[Total],Décaissements2[Total]) -> 626
B51: Position de trésorerie (fin de mois) | D51: =D14-D49 -> 100 | E51: -125 | F51: 45 | G51: -1 | H51: 224 | I51: 269 | J51: 269 | K51: 269 | L51: 269 | M51: 269 | N51: 269 | O51: 269 | P51: 269 | R51: =R14-R49 -> 438
